fUSD/lending_fUSD_20250107
["ID","MTS","AMOUNT","RATE_DAILY","PERIOD"]
[348037220,1736272241046,-500.0,9.318e-05,2]
[348037222,1736272241055,-1364.31,9.318e-05,2]
[348037224,1736272241065,-500.0,9.318e-05,2]
[348037226,1736272241074,-500.0,9.318e-05,2]
[348037228,1736272241084,-500.0,9.318e-05,2]
[348037230,1736272241093,-1363.99,9.318e-05,2]
[348037232,1736272241105,-500.0,9.318e-05,2]
[348037234,1736272241117,-184.2581611,9.318e-05,2]
[348037236,1736272241127,-500.0,9.318e-05,2]
[348037238,1736272241136,-500.0,9.318e-05,2]
[348037240,1736272241145,-500.0,9.318e-05,2]
[348037241,1736272241155,-500.0,9.318e-05,2]
[348037243,1736272241164,-500.0,9.319e-05,2]
[348037245,1736272241174,-500.0,9.319e-05,2]
[348037247,1736272241189,-500.0,9.319e-05,2]
[348037249,1736272241199,-500.0,9.319e-05,2]
[348037251,1736272241209,-581.26,9.319e-05,2]
[348037253,1736272241218,-500.0,9.319e-05,2]
[348037255,1736272241227,-536.55,9.319e-05,2]
[348037257,1736272241237,-500.0,9.319e-05,2]
[348037259,1736272241246,-1075.64,9.319e-05,2]
[348037261,1736272241256,-919.68,9.319e-05,2]
[348037263,1736272241265,-500.0,9.319e-05,2]
[348037265,1736272241275,-867.0,9.319e-05,2]
[348037267,1736272241287,-500.0,9.319e-05,2]
[348037269,1736272241296,-713.33,9.319e-05,2]
[348037271,1736272241306,-667.51,9.319e-05,2]
[348037273,1736272241316,-661.63,9.319e-05,2]
[348037275,1736272241325,-1367.96,9.319e-05,2]
[348037277,1736272241335,-500.0,9.319e-05,2]
[348037279,1736272241345,-629.9,9.319e-05,2]
[348037281,1736272241355,-705.91,9.319e-05,2]
[348037283,1736272241364,-500.0,9.319e-05,2]
[348037285,1736272241375,-1268.32,9.319e-05,2]
[348037287,1736272241384,-1000.0,9.319e-05,2]
[348037289,1736272241394,-711.26,9.319e-05,2]
[348037292,1736272241405,-545.05,9.319e-05,2]
[348037293,1736272241415,-1853.8,9.319e-05,2]
[348037296,1736272241425,-1376.9,9.319e-05,2]
[348037297,1736272241440,-500.0,9.391e-05,2]
[348037299,1736272241450,-500.0,9.391e-05,2]
[348037301,1736272241459,-500.0,9.391e-05,2]
[348037302,1736272241468,-500.0,9.391e-05,2]
[348037303,1736272241477,-213.99,9.391e-05,2]
[348037304,1736272241487,-500.0,9.391e-05,2]
[348037305,1736272241497,-500.0,9.391e-05,2]
[348037306,1736272241507,-500.0,9.391e-05,2]
[348037308,1736272241516,-500.0,9.391e-05,2]
[348037309,1736272241526,-500.0,9.391e-05,2]
[348037312,1736272241535,-500.0,9.391e-05,2]
[348037313,1736272241545,-647.88,9.391e-05,2]
[348037316,1736272241554,-500.0,9.391e-05,2]
[348037317,1736272241564,-500.0,9.391e-05,2]
[348037319,1736272241574,-500.0,9.391e-05,2]
[348037321,1736272241584,-500.0,9.391e-05,2]
[348037323,1736272241594,-500.0,9.391e-05,2]
[348037325,1736272241603,-500.0,9.391e-05,2]
[348037327,1736272241613,-500.0,9.391e-05,2]
[348037329,1736272241623,-500.0,9.391e-05,2]
[348037332,1736272241632,-500.0,9.391e-05,2]
[348037333,1736272241642,-2702.51,9.391e-05,2]
[348037335,1736272241652,-500.0,9.391e-05,2]
[348037337,1736272241662,-1428.36,9.391e-05,2]
[348037339,1736272241672,-500.0,9.391e-05,2]
[348037341,1736272241685,-500.0,9.391e-05,2]
[348037343,1736272241695,-1878.38,9.391e-05,2]
[348037345,1736272241705,-500.0,9.391e-05,2]
[348037347,1736272241714,-618.48,9.391e-05,2]
[348037349,1736272241724,-500.0,9.391e-05,2]
[348037351,1736272241733,-500.0,9.391e-05,2]
[348037353,1736272241743,-502.32,9.391e-05,2]
[348037355,1736272241753,-500.0,9.391e-05,2]
[348037357,1736272241763,-500.0,9.391e-05,2]
[348037359,1736272241772,-500.0,9.491e-05,2]
[348037361,1736272241782,-182.37693913,9.491e-05,2]
[348037364,1736272241791,-500.0,9.491e-05,2]
[348037365,1736272241801,-500.0,9.491e-05,2]
[348037367,1736272241810,-500.0,9.491e-05,2]
[348037369,1736272241820,-500.0,9.491e-05,2]
[348037371,1736272241830,-352.92,9.491e-05,2]
[348037374,1736272241839,-384.53375728,9.491e-05,2]
[348037375,1736272241849,-500.0,9.491e-05,2]
[348037377,1736272241859,-500.0,9.491e-05,2]
[348037379,1736272241869,-500.0,9.491e-05,2]
[348037381,1736272241878,-500.0,9.491e-05,2]
[348037383,1736272241888,-500.0,9.491e-05,2]
[348037385,1736272241897,-403.92,9.491e-05,2]
[348037387,1736272241907,-500.0,9.491e-05,2]
[348037389,1736272241918,-500.0,9.491e-05,2]
[348037391,1736272241932,-500.0,9.491e-05,2]
[348037393,1736272241941,-500.0,9.491e-05,2]
[348037395,1736272241951,-500.0,9.491e-05,2]
[348037397,1736272241961,-496.65,9.491e-05,2]
[348037399,1736272241971,-500.0,9.491e-05,2]
[348037401,1736272241980,-500.0,9.491e-05,2]
[348037403,1736272241990,-500.0,9.491e-05,2]
[348037405,1736272242001,-500.0,9.491e-05,2]
[348037408,1736272242011,-500.0,9.491e-05,2]
[348037410,1736272242021,-500.0,9.491e-05,2]
[348037411,1736272242030,-500.0,9.491e-05,2]
[348037414,1736272242040,-602.54,9.491e-05,2]
[348037416,1736272242050,-500.0,9.491e-05,2]
[348037417,1736272242059,-500.0,9.491e-05,2]
[348037419,1736272242069,-503.15,9.491e-05,2]
[348037421,1736272242078,-344.838578,9.491e-05,2]
[348037423,1736272242088,-2473.99,9.491e-05,2]
[348037425,1736272242098,-500.0,9.491e-05,2]
[348037428,1736272242108,-500.0,9.491e-05,2]
[348037430,1736272242118,-500.0,9.491e-05,2]
[348037431,1736272242127,-413.015248,9.491e-05,2]
[348037434,1736272242136,-500.0,9.491e-05,2]
[348037435,1736272242146,-500.0,9.491e-05,2]
[348037438,1736272242155,-500.0,9.491e-05,2]
[348037440,1736272242164,-500.0,9.491e-05,2]
[348037442,1736272242174,-500.0,9.491e-05,2]
[348037444,1736272242187,-655.66,9.491e-05,2]
[348037446,1736272242196,-628.35,9.491e-05,2]
[348037447,1736272242206,-500.0,9.491e-05,2]
[348037449,1736272242215,-500.0,9.491e-05,2]
[348037451,1736272242225,-500.0,9.491e-05,2]
[348037453,1736272242234,-500.0,9.491e-05,2]
[348037455,1736272242243,-500.0,9.491e-05,2]
[348037457,1736272242253,-500.0,9.491e-05,2]
[348037459,1736272242262,-500.0,9.491e-05,2]
[348037461,1736272242272,-2675.7,9.491e-05,2]
[348037463,1736272242282,-500.0,9.491e-05,2]
[348037465,1736272242291,-787.47,9.491e-05,2]
[348037467,1736272242301,-500.0,9.491e-05,2]
[348037469,1736272242311,-500.0,9.491e-05,2]
[348037471,1736272242320,-500.0,9.491e-05,2]
[348037473,1736272242329,-500.0,9.491e-05,2]
[348037475,1736272242338,-500.0,9.491e-05,2]
[348037477,1736272242348,-500.0,9.491e-05,2]
[348037479,1736272242357,-500.0,9.491e-05,2]
[348037481,1736272242366,-500.0,9.491e-05,2]
[348037483,1736272242376,-362.86398347,9.491e-05,2]
[348037503,1736272242568,-137.13601653,9.491e-05,2]
[348037505,1736272242578,-500.0,9.491e-05,2]
[348037507,1736272242587,-500.0,9.491e-05,2]
[348037509,1736272242597,-663.21,9.491e-05,2]
[348037511,1736272242607,-500.0,9.491e-05,2]
[348037513,1736272242616,-500.0,9.491e-05,2]
[348037515,1736272242626,-641.19,9.491e-05,2]
[348037517,1736272242635,-641.19,9.491e-05,2]
[348037519,1736272242645,-500.0,9.491e-05,2]
[348037521,1736272242654,-500.0,9.491e-05,2]
[348037523,1736272242664,-500.0,9.491e-05,2]
[348037525,1736272242673,-500.0,9.491e-05,2]
[348037527,1736272242684,-500.0,9.491e-05,2]
[348037528,1736272242694,-548.1,9.491e-05,2]
[348037529,1736272242704,-500.0,9.491e-05,2]
[348037530,1736272242714,-500.0,9.491e-05,2]
[348037531,1736272242724,-341.66,9.492e-05,2]
[348037532,1736272242734,-500.0,9.492e-05,2]
[348037533,1736272242744,-500.0,9.492e-05,2]
[348037534,1736272242753,-162.81883907,9.492e-05,2]
[348037535,1736272242763,-500.0,9.492e-05,2]
[348037536,1736272242772,-500.0,9.492e-05,2]
[348037537,1736272242781,-500.0,9.492e-05,2]
[348037538,1736272242791,-565.15,9.492e-05,2]
[348037539,1736272242800,-62.05724152,9.492e-05,2]
[348037540,1736272242815,-437.94275848,9.492e-05,2]
[348037541,1736272242824,-500.0,9.492e-05,2]
[348037542,1736272242834,-367.05724152,9.492e-05,2]
[348037543,1736272242845,-132.94275848,9.492e-05,2]
[348037544,1736272242855,-256.64,9.492e-05,2]
[348037545,1736272242864,-500.0,9.492e-05,2]
[348037546,1736272242874,-228.23,9.492e-05,2]
[348037547,1736272242884,-500.0,9.492e-05,2]
[348037548,1736272242894,-500.0,9.492e-05,2]
[348037549,1736272242905,-524.44,9.492e-05,2]
[348037550,1736272242915,-500.0,9.492e-05,2]
[348037551,1736272242928,-500.0,9.492e-05,2]
[348037552,1736272242943,-500.0,9.492e-05,2]
[348037553,1736272242953,-500.0,9.492e-05,2]
[348037554,1736272242963,-268.99,9.492e-05,2]
[348037556,1736272242973,-500.0,9.492e-05,2]
[348037558,1736272242983,-500.0,9.492e-05,2]
[348037559,1736272242994,-201.11306961,9.492e-05,2]
[348037563,1736272243007,-298.88693039,9.492e-05,2]
[348037564,1736272243017,-500.0,9.492e-05,2]
[348037565,1736272243027,-500.0,9.492e-05,2]
[348037566,1736272243037,-500.0,9.492e-05,2]
[348037567,1736272243047,-500.0,9.492e-05,2]
[348037568,1736272243057,-500.0,9.492e-05,2]
[348037569,1736272243067,-500.0,9.492e-05,2]
[348037570,1736272243077,-500.0,9.492e-05,2]
[348037571,1736272243086,-373.37,9.492e-05,2]
[348037572,1736272243097,-486.90233175,9.492e-05,2]
[348037574,1736272243110,-13.09766825,9.492e-05,2]
[348037576,1736272243120,-500.0,9.492e-05,2]
[348037579,1736272243130,-500.0,9.492e-05,2]
[348037580,1736272243139,-500.0,9.492e-05,2]
[348037581,1736272243149,-500.0,9.492e-05,2]
[348037582,1736272243158,-500.0,9.492e-05,2]
[348037583,1736272243167,-500.0,9.492e-05,2]
[348037584,1736272243176,-500.0,9.492e-05,2]
[348037586,1736272243188,-500.0,9.492e-05,2]
[348037588,1736272243198,-500.0,9.492e-05,2]
[348037589,1736272243207,-536.21204512,9.492e-05,2]
[348037591,1736272243217,-500.0,9.492e-05,2]
[348037593,1736272243227,-500.0,9.492e-05,2]
[348037595,1736272243236,-349.84881184,9.492e-05,2]
[348037597,1736272243246,-500.0,9.492e-05,2]
[348037599,1736272243256,-500.0,9.492e-05,2]
[348037601,1736272243266,-500.0,9.492e-05,2]
[348037603,1736272243275,-500.0,9.492e-05,2]
[348037605,1736272243285,-500.0,9.492e-05,2]
[348037607,1736272243295,-500.0,9.492e-05,2]
[348037609,1736272243304,-500.0,9.492e-05,2]
[348037611,1736272243314,-500.0,9.492e-05,2]
[348037612,1736272243324,-500.0,9.492e-05,2]
[348037613,1736272243332,-517.22,9.492e-05,2]
[348037614,1736272243340,-155.07,9.492e-05,2]
[348037615,1736272243350,-500.0,9.492e-05,2]
[348037616,1736272243359,-500.0,9.492e-05,2]
[348037617,1736272243370,-500.0,9.492e-05,2]
[348037618,1736272243380,-500.0,9.492e-05,2]
[348037619,1736272243389,-500.0,9.492e-05,2]
[348037620,1736272243398,-500.0,9.492e-05,2]
[348037621,1736272243408,-500.0,9.492e-05,2]
[348037622,1736272243416,-500.0,9.492e-05,2]
[348037623,1736272243425,-500.0,9.492e-05,2]
[348037624,1736272243438,-500.0,9.492e-05,2]
[348037625,1736272243448,-500.0,9.492e-05,2]
[348037626,1736272243458,-500.0,9.492e-05,2]
[348037627,1736272243467,-480.00995812,9.492e-05,2]
[348037628,1736272243477,-500.0,9.492e-05,2]
[348037629,1736272243487,-500.0,9.492e-05,2]
[348037630,1736272243497,-500.0,9.492e-05,2]
[348037631,1736272243506,-626.08,9.492e-05,2]
[348037632,1736272243516,-500.0,9.492e-05,2]
[348037633,1736272243525,-500.0,9.492e-05,2]
[348037634,1736272243534,-500.0,9.492e-05,2]
[348037635,1736272243544,-2179.67,9.492e-05,2]
[348037636,1736272243554,-611.46,9.492e-05,2]
[348037637,1736272243564,-506.7,9.591e-05,2]
[348037638,1736272243574,-866.16,9.591e-05,2]
[348037639,1736272243584,-1383.54,9.591e-05,2]
[348037641,1736272243594,-991.68,9.591e-05,2]
[348037643,1736272243603,-762.59,9.591e-05,2]
[348037645,1736272243612,-500.0,9.591e-05,2]
[348037647,1736272243622,-1227.02,9.591e-05,2]
[348037649,1736272243633,-637.36,9.591e-05,2]
[348037651,1736272243644,-629.69257042,9.591e-05,2]
[348037653,1736272243653,-508.49,9.591e-05,2]
[348037655,1736272243663,-500.0,9.591e-05,2]
[348037657,1736272243673,-1029.16,9.591e-05,2]
[348037660,1736272243685,-650.45,9.591e-05,2]
[348037662,1736272243695,-500.0,9.591e-05,2]
[348037664,1736272243705,-314.53166519,9.591e-05,2]
[348037666,1736272243714,-1663.49,9.591e-05,2]
[348037668,1736272243724,-500.0,9.591e-05,2]
[348037670,1736272243733,-500.0,9.591e-05,2]
[348037672,1736272243743,-539.65,9.592e-05,2]
[348037674,1736272243752,-500.0,9.592e-05,2]
[348037676,1736272243762,-500.0,9.592e-05,2]
[348037678,1736272243772,-500.0,9.592e-05,2]
[348037680,1736272243783,-500.0,9.592e-05,2]
[348037682,1736272243792,-500.0,9.592e-05,2]
[348037684,1736272243802,-500.0,9.592e-05,2]
[348037686,1736272243811,-500.0,9.592e-05,2]
[348037688,1736272243820,-500.0,9.592e-05,2]
[348037690,1736272243830,-500.0,9.592e-05,2]
[348037692,1736272243840,-500.0,9.592e-05,2]
[348037694,1736272243849,-1661.32,9.592e-05,2]
[348037696,1736272243858,-500.0,9.592e-05,2]
[348037698,1736272243868,-3402.67,9.592e-05,2]
[348037700,1736272243878,-500.0,9.592e-05,2]
[348037702,1736272243887,-500.0,9.592e-05,2]
[348037705,1736272243897,-566.8,9.592e-05,2]
[348037707,1736272243907,-500.0,9.592e-05,2]
[348037709,1736272243917,-901.2,9.592e-05,2]
[348037710,1736272243928,-500.0,9.592e-05,2]
[348037712,1736272243938,-500.0,9.592e-05,2]
[348037714,1736272243947,-1107.42,9.592e-05,2]
[348037717,1736272243958,-524.7,9.592e-05,2]
[348037720,1736272243967,-500.0,9.592e-05,2]
[348037723,1736272243977,-1952.83,9.592e-05,2]
[348037726,1736272243987,-384.87,9.592e-05,2]
[348037729,1736272243997,-500.0,9.592e-05,2]
[348037732,1736272244007,-500.0,9.592e-05,2]
[348037736,1736272244016,-802.41,9.592e-05,2]
[348037738,1736272244025,-936.05,9.592e-05,2]
[348037741,1736272244035,-500.0,9.592e-05,2]
[348037745,1736272244044,-567.31,9.592e-05,2]
[348037748,1736272244053,-609.52591518,9.592e-05,2]
[348037751,1736272244064,-637.16,9.592e-05,2]
[348037754,1736272244073,-500.0,9.592e-05,2]
[348037757,1736272244083,-1050.45,9.592e-05,2]
[348037760,1736272244093,-500.0,9.592e-05,2]
[348037763,1736272244105,-500.0,9.592e-05,2]
[348037766,1736272244115,-649.55,9.592e-05,2]
[348037769,1736272244125,-500.0,9.592e-05,2]
[348037772,1736272244134,-606.55,9.592e-05,2]
[348037776,1736272244144,-2136.25,9.592e-05,2]
[348037779,1736272244153,-500.0,9.592e-05,2]
[348037782,1736272244164,-1364.31,9.592e-05,2]
[348037785,1736272244173,-500.0,9.592e-05,2]
[348037787,1736272244183,-190.24301205,9.592e-05,2]
[348037789,1736272244194,-1363.99,9.592e-05,2]
[348037791,1736272244203,-500.0,9.592e-05,2]
[348037793,1736272244214,-500.0,9.592e-05,2]
[348037795,1736272244224,-500.0,9.592e-05,2]
[348037797,1736272244234,-500.0,9.592e-05,2]
[348037799,1736272244243,-500.0,9.593e-05,2]
[348037801,1736272244253,-500.0,9.593e-05,2]
[348037803,1736272244262,-500.0,9.593e-05,2]
[348037805,1736272244272,-500.0,9.593e-05,2]
[348037807,1736272244282,-581.26,9.593e-05,2]
[348037809,1736272244292,-500.0,9.593e-05,2]
[348037812,1736272244303,-536.55,9.593e-05,2]
[348037814,1736272244313,-500.0,9.593e-05,2]
[348037816,1736272244322,-1075.64,9.593e-05,2]
[348037818,1736272244332,-919.68,9.593e-05,2]
[348037820,1736272244341,-553.36623827,9.593e-05,2]
[348037822,1736272244351,-867.0,9.593e-05,2]
[348037824,1736272244361,-500.0,9.593e-05,2]
[348037826,1736272244370,-713.33,9.593e-05,2]
[348037828,1736272244380,-667.51,9.593e-05,2]
[348037830,1736272244390,-661.63,9.593e-05,2]
[348037832,1736272244402,-1367.96,9.593e-05,2]
[348037834,1736272244416,-500.0,9.593e-05,2]
[348037836,1736272244426,-629.9,9.593e-05,2]
[348037838,1736272244439,-705.91,9.593e-05,2]
[348037840,1736272244448,-500.0,9.593e-05,2]
[348037842,1736272244458,-1268.32,9.593e-05,2]
[348037844,1736272244468,-1000.0,9.593e-05,2]
[348037846,1736272244478,-711.26,9.593e-05,2]
[348037848,1736272244487,-545.05,9.593e-05,2]
[348037850,1736272244497,-1853.8,9.593e-05,2]
[348037852,1736272244507,-1376.9,9.593e-05,2]
[348037854,1736272244517,-159.79300498,9.638e-05,2]
[348037856,1736272244526,-500.0,9.644e-05,2]
[348037858,1736272244536,-276.09787745,9.644e-05,2]
[348037860,1736272244546,-158.96446838,9.644e-05,2]
[348037862,1736272244556,-286.28676471,9.665e-05,2]
[348037864,1736272244570,-213.71323529,9.665e-05,2]
[348037865,1736272244580,-500.0,9.665e-05,2]
[348037866,1736272244589,-6.28676471,9.665e-05,2]
[348037867,1736272244604,-493.71323529,9.665e-05,2]
[348037868,1736272244613,-500.0,9.665e-05,2]
[348037869,1736272244623,-457.16253773,9.665e-05,2]
[348037870,1736272244634,-42.83746227,9.665e-05,2]
[348037871,1736272244644,-500.0,9.665e-05,2]
[348037872,1736272244653,-500.0,9.665e-05,2]
[348037873,1736272244663,-500.0,9.665e-05,2]
[348037874,1736272244673,-500.0,9.665e-05,2]
[348037875,1736272244684,-500.0,9.665e-05,2]
[348037877,1736272244693,-474.14453773,9.665e-05,2]
[348037879,1736272244705,-25.85546227,9.665e-05,2]
[348037881,1736272244715,-500.0,9.665e-05,2]
[348037883,1736272244725,-500.0,9.665e-05,2]
[348037885,1736272244734,-500.0,9.665e-05,2]
[348037887,1736272244744,-500.0,9.665e-05,2]
[348037888,1736272244754,-500.0,9.665e-05,2]
[348037889,1736272244764,-500.0,9.665e-05,2]
[348037890,1736272244774,-500.0,9.665e-05,2]
[348037891,1736272244784,-500.0,9.665e-05,2]
[348037892,1736272244795,-2702.51,9.665e-05,2]
[348037893,1736272244804,-500.0,9.665e-05,2]
[348037894,1736272244814,-1428.36,9.665e-05,2]
[348037895,1736272244824,-500.0,9.665e-05,2]
[348037896,1736272244832,-500.0,9.665e-05,2]
[348037897,1736272244842,-1878.38,9.665e-05,2]
[348037898,1736272244851,-500.0,9.665e-05,2]
[348037899,1736272244860,-75.91451817,9.665e-05,2]
[348037900,1736272244872,-399.35343264,9.665e-05,2]
[348037901,1736272244884,-143.21204919,9.665e-05,2]
[348037902,1736272244894,-177.04519969,9.665e-05,2]
[348037903,1736272244914,-38.15480031,9.665e-05,2]
[348037904,1736272244926,-500.0,9.665e-05,2]
[348037905,1736272244937,-502.32,9.665e-05,2]
[348037906,1736272244947,-500.0,9.665e-05,2]
[348037907,1736272244957,-500.0,9.665e-05,2]
[348037908,1736272244967,-361.76,9.709e-05,2]
[348037909,1736272244976,-500.0,9.765e-05,2]
[348037910,1736272244986,-500.0,9.765e-05,2]
[348037911,1736272244996,-500.0,9.765e-05,2]
[348037912,1736272245007,-500.0,9.765e-05,2]
[348037913,1736272245017,-500.0,9.765e-05,2]
[348037914,1736272245026,-500.0,9.765e-05,2]
[348037915,1736272245036,-500.0,9.765e-05,2]
[348037916,1736272245046,-500.0,9.765e-05,2]
[348037917,1736272245056,-538.84110124,9.765e-05,2]
[348037918,1736272245066,-500.0,9.765e-05,2]
[348037919,1736272245289,-500.0,9.765e-05,2]
[348037920,1736272245300,-500.0,9.765e-05,2]
[348037921,1736272245310,-500.0,9.765e-05,2]
[348037922,1736272245321,-500.0,9.765e-05,2]
[348037923,1736272245331,-500.0,9.765e-05,2]
[348037924,1736272245341,-500.0,9.765e-05,2]
[348037925,1736272245350,-500.0,9.765e-05,2]
[348037926,1736272245359,-500.0,9.765e-05,2]
[348037927,1736272245369,-330.08,9.765e-05,2]
[348037928,1736272245377,-500.0,9.765e-05,2]
[348037929,1736272245386,-600.72,9.765e-05,2]
[348037930,1736272245396,-500.0,9.765e-05,2]
[348037931,1736272245405,-602.54,9.765e-05,2]
[348037932,1736272245415,-500.0,9.765e-05,2]
[348037933,1736272245425,-500.0,9.765e-05,2]
[348037934,1736272245434,-344.838578,9.765e-05,2]
[348037935,1736272245444,-2473.99,9.765e-05,2]
[348037936,1736272245453,-500.0,9.765e-05,2]
[348037937,1736272245463,-500.0,9.765e-05,2]
[348037938,1736272245472,-500.0,9.765e-05,2]
[348037939,1736272245481,-500.0,9.765e-05,2]
[348037940,1736272245491,-413.015248,9.765e-05,2]
[348037941,1736272245500,-500.0,9.765e-05,2]
[348037942,1736272245509,-500.0,9.765e-05,2]
[348037943,1736272245518,-500.0,9.765e-05,2]
[348037944,1736272245528,-500.0,9.765e-05,2]
[348037945,1736272245537,-500.0,9.765e-05,2]
[348037946,1736272245548,-655.66,9.765e-05,2]
[348037947,1736272245559,-628.35,9.765e-05,2]
[348037948,1736272245568,-500.0,9.765e-05,2]
[348037949,1736272245578,-500.0,9.765e-05,2]
[348037950,1736272245588,-500.0,9.765e-05,2]
[348037951,1736272245598,-500.0,9.765e-05,2]
[348037952,1736272245608,-500.0,9.765e-05,2]
[348037953,1736272245617,-500.0,9.765e-05,2]
[348037954,1736272245627,-500.0,9.765e-05,2]
[348037955,1736272245636,-2675.7,9.765e-05,2]
[348037956,1736272245646,-500.0,9.765e-05,2]
[348037957,1736272245655,-787.47,9.765e-05,2]
[348037958,1736272245664,-500.0,9.765e-05,2]
[348037959,1736272245674,-500.0,9.765e-05,2]
[348037960,1736272245685,-500.0,9.765e-05,2]
[348037961,1736272245694,-500.0,9.765e-05,2]
[348037962,1736272245703,-500.0,9.765e-05,2]
[348037963,1736272245713,-500.0,9.765e-05,2]
[348037964,1736272245722,-500.0,9.765e-05,2]
[348037965,1736272245731,-500.0,9.765e-05,2]
[348037966,1736272245741,-500.0,9.765e-05,2]
[348037967,1736272245750,-500.0,9.765e-05,2]
[348037968,1736272245759,-500.0,9.765e-05,2]
[348037969,1736272245769,-665.14,9.765e-05,2]
[348037970,1736272245781,-500.0,9.765e-05,2]
[348037971,1736272245791,-500.0,9.765e-05,2]
[348037972,1736272245800,-641.19,9.765e-05,2]
[348037973,1736272245809,-641.19,9.765e-05,2]
[348037974,1736272245819,-513.82,9.765e-05,2]
[348037975,1736272245828,-500.0,9.765e-05,2]
[348037976,1736272245838,-500.0,9.765e-05,2]
[348037977,1736272245847,-500.0,9.765e-05,2]
[348037978,1736272245856,-500.0,9.765e-05,2]
[348037979,1736272245865,-548.1,9.765e-05,2]
[348037980,1736272245874,-500.0,9.765e-05,2]
[348037981,1736272245883,-500.0,9.765e-05,2]
[348037982,1736272245893,-500.0,9.766e-05,2]
[348037983,1736272245903,-313.39537876,9.766e-05,2]
[348037984,1736272245912,-500.0,9.766e-05,2]
[348037985,1736272245923,-500.0,9.766e-05,2]
[348037986,1736272245934,-500.0,9.766e-05,2]
[348037987,1736272245944,-500.0,9.766e-05,2]
[348037990,1736272245953,-500.0,9.766e-05,2]
[348037992,1736272245963,-291.99,9.766e-05,2]
[348037994,1736272245973,-500.0,9.766e-05,2]
[348037995,1736272245982,-306.73489369,9.766e-05,2]
[348037998,1736272245998,-193.26510631,9.766e-05,2]
[348038000,1736272246007,-500.0,9.766e-05,2]
[348038001,1736272246017,-500.0,9.766e-05,2]
[348038002,1736272246027,-432.39,9.766e-05,2]
[348038003,1736272246036,-148.88762269,9.766e-05,2]
[348038013,1736272246929,-1000.0,8.668e-05,2]
[348038014,1736272246941,-501.39,8.67e-05,2]
[348038015,1736272246951,-500.0,8.843e-05,2]
[348038016,1736272246960,-501.39,8.944e-05,2]
[348038017,1736272246971,-500.0,9.043e-05,2]
[348038018,1736272246980,-500.0,9.043e-05,2]
[348038019,1736272246989,-500.0,9.043e-05,2]
[348038020,1736272247000,-500.0,9.044e-05,2]
[348038021,1736272247011,-400.9183488,9.044e-05,2]
[348038022,1736272247023,-99.0816512,9.044e-05,2]
[348038023,1736272247033,-393.5318987,9.117e-05,2]
[348038024,1736272247045,-106.4681013,9.117e-05,2]
[348038025,1736272247055,-500.0,9.317e-05,2]
[348038026,1736272247065,-118.21197834,9.317e-05,2]
[348038030,1736272247890,-381.78802166,9.317e-05,2]
[348038031,1736272247899,-500.0,9.317e-05,2]
[348038032,1736272247909,-500.0,9.391e-05,2]
[348038033,1736272247919,-500.0,9.591e-05,2]
[348038034,1736272247933,-500.0,9.591e-05,2]
[348038035,1736272247943,-500.0,9.644e-05,2]
[348038036,1736272247952,-564.36,9.665e-05,2]
[348038037,1736272247963,-1000.0,9.751e-05,2]
[348038038,1736272247972,-351.11237731,9.766e-05,2]
[348038039,1736272247982,-500.0,9.766e-05,2]
[348038040,1736272247991,-500.0,9.766e-05,2]
[348038041,1736272248004,-500.0,9.766e-05,2]
[348038042,1736272248014,-500.0,9.766e-05,2]
[348038043,1736272248024,-500.0,9.766e-05,2]
[348038044,1736272248034,-500.0,9.766e-05,2]
[348038045,1736272248044,-500.0,9.766e-05,2]
[348038046,1736272248053,-500.0,9.766e-05,2]
[348038047,1736272248063,-500.0,9.766e-05,2]
[348038048,1736272248072,-500.0,9.766e-05,2]
[348038049,1736272248081,-500.0,9.766e-05,2]
[348038050,1736272248091,-500.0,9.766e-05,2]
[348038051,1736272248103,-500.0,9.766e-05,2]